fUST/lending_fUST_20250528
["ID","MTS","AMOUNT","RATE_DAILY","PERIOD"]
[362628255,1748381435629,-430.0,0.00019725,2]
[362628256,1748381435639,-430.0,0.00019725,2]
[362628257,1748381435649,-430.0,0.00019725,2]
[362628258,1748381435659,-430.0,0.00019725,2]
[362628259,1748381435669,-430.0,0.00019725,2]
[362628260,1748381435680,-430.0,0.00019725,2]
[362628261,1748381435690,-430.0,0.00019725,2]
[362628262,1748381435699,-430.0,0.00019725,2]
[362628263,1748381435708,-430.0,0.00019725,2]
[362628264,1748381435719,-280.06987646,0.00019725,2]
[362628265,1748381435729,-430.0,0.00019725,2]
[362628266,1748381435739,-430.0,0.00019725,2]
[362628267,1748381435748,-430.0,0.00019725,2]
[362628268,1748381435758,-430.0,0.00019725,2]
[362628269,1748381435770,-430.0,0.00019725,2]
[362628270,1748381435780,-430.0,0.00019725,2]
[362628271,1748381435790,-430.0,0.00019725,2]
[362628272,1748381435799,-500.92,0.00019725,2]
[362628273,1748381435809,-430.0,0.00019725,2]
[362628274,1748381435819,-430.0,0.00019725,2]
[362628275,1748381435828,-430.0,0.00019725,2]
[362628276,1748381435838,-430.0,0.00019725,2]
[362628277,1748381435847,-430.0,0.00019725,2]
[362628278,1748381435857,-430.0,0.00019725,2]
[362628279,1748381435867,-1273.29,0.00019725,2]
[362628280,1748381435877,-484.84804966,0.00019726,2]
[362628281,1748381435886,-430.0,0.00019726,2]
[362628282,1748381435896,-430.0,0.00019726,2]
[362628283,1748381435906,-430.0,0.00019726,2]
[362628284,1748381435915,-430.0,0.00019726,2]
[362628285,1748381435925,-430.0,0.00019726,2]
[362628286,1748381435935,-430.0,0.00019726,2]
[362628287,1748381435945,-430.0,0.00019726,2]
[362628288,1748381435955,-529.3,0.00019726,2]
[362628289,1748381435965,-448.53,0.00019726,2]
[362628290,1748381435976,-580.47,0.00019726,2]
[362628291,1748381435987,-430.0,0.00019726,2]
[362628292,1748381435999,-430.0,0.00019726,2]
[362628293,1748381436008,-430.0,0.00019726,2]
[362628294,1748381436018,-430.0,0.00019726,2]
[362628295,1748381436028,-430.0,0.00019726,2]
[362628296,1748381436039,-440.53,0.00019726,2]
[362628297,1748381436048,-976.43,0.00019726,2]
[362628298,1748381436059,-430.0,0.00019726,2]
[362628299,1748381436070,-575.56,0.00019726,2]
[362628300,1748381436079,-430.0,0.00019726,2]
[362628301,1748381436089,-430.0,0.00019726,2]
[362628302,1748381436099,-430.0,0.00019726,2]
[362628303,1748381436108,-430.0,0.00019726,2]
[362628304,1748381436117,-430.0,0.00019726,2]
[362628305,1748381436127,-430.0,0.00019726,2]
[362628306,1748381436137,-430.0,0.00019726,2]
[362628307,1748381436146,-430.0,0.00019726,2]
[362628308,1748381436156,-430.0,0.00019726,2]
[362628309,1748381436167,-430.0,0.00019726,2]
[362628310,1748381436179,-450.0,0.00019726,2]
[362628311,1748381436189,-430.0,0.00019726,2]
[362628312,1748381436199,-430.0,0.00019726,2]
[362628313,1748381436208,-430.0,0.00019726,2]
[362628314,1748381436218,-430.0,0.00019726,2]
[362628315,1748381436227,-430.0,0.00019726,2]
[362628316,1748381436237,-430.0,0.00019726,2]
[362628317,1748381436246,-430.0,0.00019726,2]
[362628318,1748381436256,-160.0,0.00019849,2]
[362628319,1748381436267,-423.16111059,0.00019849,2]
[362628320,1748381436277,-160.0,0.00019849,2]
[362628321,1748381436286,-674.91031806,0.0001991,2]
[362628322,1748381436296,-430.0,0.00019999,2]
[362628323,1748381436305,-430.0,0.00019999,2]
[362628324,1748381436315,-430.0,0.00019999,2]
[362628325,1748381436324,-430.0,0.00019999,2]
[362628326,1748381436334,-430.0,0.00019999,2]
[362628327,1748381436346,-2641.22,0.00019999,2]
[362628328,1748381436356,-430.0,0.00019999,2]
[362628329,1748381436366,-430.0,0.00019999,2]
[362628330,1748381436376,-430.0,0.00019999,2]
[362628331,1748381436386,-430.0,0.00019999,2]
[362628332,1748381436396,-196.24550337,0.00019999,2]
[362628333,1748381436407,-430.0,0.00019999,2]
[362628334,1748381436416,-505.69,0.00019999,2]
[362628335,1748381436426,-430.0,0.00019999,2]
[362628336,1748381436436,-430.0,0.00019999,2]
[362628337,1748381436445,-430.0,0.00019999,2]
[362628338,1748381436455,-430.0,0.00019999,2]
[362628339,1748381436465,-430.0,0.00019999,2]
[362628340,1748381436475,-430.0,0.00019999,2]
[362628341,1748381436485,-430.0,0.00019999,2]
[362628342,1748381436495,-430.0,0.00019999,2]
[362628343,1748381436505,-430.0,0.00019999,2]
[362628344,1748381436516,-430.0,0.00019999,2]
[362628345,1748381436526,-430.0,0.00019999,2]
[362628346,1748381436536,-430.0,0.00019999,2]
[362628347,1748381436546,-430.0,0.00019999,2]
[362628348,1748381436555,-467.34104152,0.00019999,2]
[362628349,1748381436566,-1273.29,0.00019999,2]
[362628350,1748381436576,-430.0,0.0002,2]
[362628351,1748381436585,-430.0,0.0002,2]
[362628352,1748381436595,-430.0,0.0002,2]
[362628353,1748381436604,-430.0,0.0002,2]
[362628354,1748381436614,-529.3,0.0002,2]
[362628355,1748381436623,-448.53,0.0002,2]
[362628356,1748381436633,-580.47,0.0002,2]
[362628357,1748381436643,-430.0,0.0002,2]
[362628358,1748381436653,-430.0,0.0002,2]
[362628359,1748381436663,-430.0,0.0002,2]
[362628360,1748381436675,-430.0,0.0002,2]
[362628361,1748381436686,-430.0,0.0002,2]
[362628362,1748381436696,-440.53,0.0002,2]
[362628363,1748381436706,-976.43,0.0002,2]
[362628364,1748381436716,-575.56,0.0002,2]
[362628365,1748381436727,-430.0,0.0002,2]
[362628366,1748381436737,-430.0,0.0002,2]
[362628367,1748381436747,-430.0,0.0002,2]
[362628368,1748381436758,-430.0,0.0002,2]
[362628369,1748381436768,-430.0,0.0002,2]
[362628370,1748381436779,-430.0,0.0002,2]
[362628371,1748381436789,-430.0,0.0002,2]
[362628372,1748381436799,-430.0,0.0002,2]
[362628373,1748381436809,-430.0,0.0002,2]
[362628374,1748381436818,-430.0,0.0002,2]
[362628375,1748381436828,-430.0,0.0002,2]
[362628376,1748381436838,-430.0,0.0002,2]
[362628377,1748381436848,-430.0,0.0002,2]
[362628378,1748381436857,-430.0,0.0002,2]
[362628379,1748381436867,-430.0,0.0002,2]
[362628380,1748381436877,-430.0,0.0002,2]
[362628381,1748381436886,-430.0,0.0002,2]
[362628382,1748381436896,-1000.0,0.00020021,2]
[362628383,1748381436905,-3001.84,0.00020081,2]
[362628384,1748381436918,-330.516047,0.00020187,2]
[362628385,1748381436927,-207.70129585,0.00020226,2]
[362628386,1748381436937,-500.0,0.00020272,2]
[362628387,1748381436947,-304.75189208,0.00020273,2]
[362628388,1748381436958,-430.0,0.00020273,2]
[362628389,1748381436968,-430.0,0.00020273,2]
[362628390,1748381436978,-430.0,0.00020273,2]
[362628391,1748381436988,-430.0,0.00020273,2]
[362628392,1748381436998,-430.0,0.00020273,2]
[362628393,1748381437008,-529.3,0.00020273,2]
[362628394,1748381437019,-430.0,0.00020273,2]
[362628395,1748381437028,-430.0,0.00020273,2]
[362628396,1748381437038,-448.53,0.00020273,2]
[362628397,1748381437048,-2641.22,0.00020273,2]
[362628398,1748381437058,-580.47,0.00020273,2]
[362628399,1748381437068,-430.0,0.00020273,2]
[362628400,1748381437079,-430.0,0.00020273,2]
[362628401,1748381437089,-430.0,0.00020273,2]
[362628402,1748381437099,-430.0,0.00020273,2]
[362628403,1748381437110,-430.0,0.00020273,2]
[362628404,1748381437119,-430.0,0.00020273,2]
[362628405,1748381437129,-430.0,0.00020273,2]
[362628406,1748381437138,-430.0,0.00020273,2]
[362628407,1748381437148,-440.53,0.00020273,2]
[362628408,1748381437158,-976.43,0.00020273,2]
[362628409,1748381437168,-430.0,0.00020273,2]
[362628410,1748381437177,-430.0,0.00020273,2]
[362628411,1748381437187,-575.56,0.00020273,2]
[362628412,1748381437197,-171.58,0.00020273,2]
[362628413,1748381437207,-430.0,0.00020273,2]
[362628414,1748381437216,-430.0,0.00020273,2]
[362628415,1748381437226,-510.00723153,0.00020273,2]
[362628416,1748381437235,-430.0,0.00020273,2]
[362628417,1748381437245,-430.0,0.00020273,2]
[362628418,1748381437254,-430.0,0.00020273,2]
[362628419,1748381437264,-430.0,0.00020273,2]
[362628420,1748381437274,-430.0,0.00020273,2]
[362628421,1748381437283,-430.0,0.00020273,2]
[362628422,1748381437295,-430.0,0.00020273,2]
[362628423,1748381437304,-430.0,0.00020273,2]
[362628424,1748381437314,-423.89,0.00020273,2]
[362628427,1748381437415,-430.0,0.00020273,2]
[362628428,1748381437437,-430.0,0.00020273,2]
[362628429,1748381437447,-430.0,0.00020273,2]
[362628431,1748381437457,-430.0,0.00020273,2]
[362628433,1748381437466,-430.0,0.00020273,2]
[362628434,1748381437476,-430.0,0.00020273,2]
[362628435,1748381437486,-430.0,0.00020273,2]
[362628436,1748381437495,-165.2949951,0.00020273,2]
[362628437,1748381437505,-430.0,0.00020273,2]
[362628439,1748381437516,-430.0,0.00020273,2]
[362628441,1748381437526,-430.0,0.00020273,2]
[362628443,1748381437536,-430.0,0.00020273,2]
[362628445,1748381437547,-430.0,0.00020273,2]
[362628447,1748381437556,-430.0,0.00020273,2]
[362628449,1748381437566,-1273.29,0.00020273,2]
[362628451,1748381437575,-430.0,0.00020273,2]
[362628452,1748381437584,-430.0,0.00020273,2]
[362628455,1748381437594,-430.0,0.00020547,2]
[362628457,1748381437604,-430.0,0.00020547,2]
[362628459,1748381437614,-430.0,0.00020547,2]
[362628461,1748381437623,-430.0,0.00020547,2]
[362628463,1748381437633,-430.0,0.00020547,2]
[362628465,1748381437643,-529.3,0.00020547,2]
[362628467,1748381437652,-430.0,0.00020547,2]
[362628469,1748381437661,-430.0,0.00020547,2]
[362628471,1748381437671,-448.53,0.00020547,2]
[362628472,1748381437685,-2641.22,0.00020547,2]
[362628474,1748381437695,-580.47,0.00020547,2]
[362628477,1748381437705,-270.25,0.00020547,2]
[362628478,1748381437714,-430.0,0.00020547,2]
[362628481,1748381437725,-430.0,0.00020547,2]
[362628483,1748381437735,-430.0,0.00020547,2]
[362628485,1748381437746,-430.0,0.00020547,2]
[362628487,1748381437757,-430.0,0.00020547,2]
[362628489,1748381437768,-440.53,0.00020547,2]
[362628491,1748381437778,-976.43,0.00020547,2]
[362628493,1748381437788,-430.0,0.00020547,2]
[362628495,1748381437799,-430.0,0.00020547,2]
[362628497,1748381437809,-575.56,0.00020547,2]
[362628499,1748381437819,-430.0,0.00020547,2]
[362628501,1748381437829,-430.0,0.00020547,2]
[362628503,1748381437839,-430.0,0.00020547,2]
[362628505,1748381437849,-261.89,0.00020547,2]
[362628507,1748381437858,-430.0,0.00020547,2]
[362628509,1748381437869,-430.0,0.00020547,2]
[362628511,1748381437880,-267.62232923,0.00020547,2]
[362628513,1748381437889,-430.0,0.00020547,2]
[362628515,1748381437900,-430.0,0.00020547,2]
[362628517,1748381437910,-430.0,0.00020547,2]
[362628519,1748381437919,-430.0,0.00020547,2]
[362628521,1748381437929,-430.0,0.00020547,2]
[362628523,1748381437940,-430.0,0.00020547,2]
[362628525,1748381437951,-430.0,0.00020547,2]
[362628527,1748381437961,-430.0,0.00020547,2]
[362628529,1748381437970,-430.0,0.00020547,2]
[362628531,1748381437980,-430.0,0.00020547,2]
[362628534,1748381437990,-430.0,0.00020547,2]
[362628536,1748381437999,-430.0,0.00020547,2]
[362628538,1748381438009,-430.0,0.00020547,2]
[362628541,1748381438020,-464.33274605,0.00020547,2]
[362628543,1748381438030,-430.0,0.00020547,2]
[362628545,1748381438040,-430.0,0.00020547,2]
[362628546,1748381438049,-1273.29,0.00020547,2]
[362628548,1748381438058,-430.0,0.00020547,2]
[362628550,1748381438067,-430.0,0.00020547,2]
[362628552,1748381438077,-674.91031806,0.00020741,2]
[362628554,1748381438087,-215.0738,0.00020808,2]
[362628557,1748381438096,-430.0,0.00020821,2]
[362628559,1748381438106,-430.0,0.00020821,2]
[362628561,1748381438116,-430.0,0.00020821,2]
[362628563,1748381438125,-430.0,0.00020821,2]
[362628565,1748381438135,-529.3,0.00020821,2]
[362628567,1748381438144,-448.53,0.00020821,2]
[362628569,1748381438154,-2641.22,0.00020821,2]
[362628571,1748381438164,-580.47,0.00020821,2]
[362628573,1748381438173,-430.0,0.00020821,2]
[362628575,1748381438183,-430.0,0.00020821,2]
[362628577,1748381438192,-430.0,0.00020821,2]
[362628579,1748381438201,-430.0,0.00020821,2]
[362628581,1748381438211,-440.53,0.00020821,2]
[362628583,1748381438220,-976.43,0.00020821,2]
[362628585,1748381438230,-430.0,0.00020821,2]
[362628587,1748381438239,-575.56,0.00020821,2]
[362628589,1748381438249,-430.0,0.00020821,2]
[362628591,1748381438258,-430.0,0.00020821,2]
[362628593,1748381438269,-430.0,0.00020821,2]
[362628595,1748381438278,-430.0,0.00020821,2]
[362628597,1748381438287,-430.0,0.00020821,2]
[362628599,1748381438297,-430.0,0.00020821,2]
[362628601,1748381438307,-430.0,0.00020821,2]
[362628603,1748381438316,-430.0,0.00020821,2]
[362628605,1748381438326,-374.11694667,0.00020821,2]
[362628608,1748381438336,-430.0,0.00020821,2]
[362628609,1748381438346,-430.0,0.00020821,2]
[362628611,1748381438355,-430.0,0.00020821,2]
[362628614,1748381438365,-430.0,0.00020821,2]
[362628615,1748381438375,-430.0,0.00020821,2]
[362628618,1748381438385,-501.60105038,0.00020821,2]
[362628620,1748381438394,-430.0,0.00020821,2]
[362628621,1748381438403,-430.0,0.00020821,2]
[362628624,1748381438413,-430.0,0.00020821,2]
[362628626,1748381438423,-1273.29,0.00020821,2]
[362628628,1748381438433,-430.0,0.00020821,2]
[362628630,1748381438442,-420.0,0.00020898,2]
[362628632,1748381438451,-448.94412757,0.000209,4]
[362628634,1748381438461,-269.60926605,0.00020938,2]
[362628636,1748381438471,-291.595,0.00020972,2]
[362628638,1748381438480,-4502.76,0.00020993,2]
[362628640,1748381438490,-1000.0,0.00021026,7]
[362628642,1748381438500,-1000.0,0.00021026,7]
[362628644,1748381438510,-1000.0,0.00021026,7]
[362628646,1748381438520,-1000.0,0.00021026,7]
[362628647,1748381438530,-1000.0,0.00021026,7]
[362628650,1748381438541,-1000.0,0.00021026,7]
[362628652,1748381438550,-1000.0,0.00021026,7]
[362628654,1748381438560,-1000.0,0.00021026,7]
[362628656,1748381438569,-1000.0,0.00021026,2]
[362628658,1748381438579,-1000.0,0.00021026,2]
[362628660,1748381438589,-1000.0,0.00021026,2]
[362628662,1748381438601,-1000.0,0.00021026,2]
[362628665,1748381438617,-1000.0,0.00021026,2]
[362628667,1748381438630,-1000.0,0.00021026,2]
[362628670,1748381438644,-1000.0,0.00021026,2]
[362628672,1748381438655,-1000.0,0.00021026,2]
[362628674,1748381438667,-448.94412748,0.00021038,4]
[362628676,1748381438683,-1936.25,0.00021077,2]
[362628679,1748381438697,-702.0,0.00021077,2]
[362628681,1748381438709,-405.0,0.00021077,2]
[362628684,1748381438725,-430.0,0.00021095,2]
[362628686,1748381438738,-430.0,0.00021095,2]
[362628688,1748381438752,-430.0,0.00021095,2]
[362628691,1748381438768,-430.0,0.00021095,2]
[362628693,1748381438784,-529.3,0.00021095,2]
[362628695,1748381438796,-448.53,0.00021095,2]
[362628698,1748381438809,-2641.22,0.00021095,2]
[362628700,1748381438821,-580.47,0.00021095,2]
[362628702,1748381438830,-430.0,0.00021095,2]
[362628704,1748381438841,-430.0,0.00021095,2]
[362628706,1748381438854,-430.0,0.00021095,2]
[362628709,1748381438868,-537.6519295,0.00021095,2]
[362628711,1748381438881,-440.53,0.00021095,2]
[362628714,1748381438894,-976.43,0.00021095,2]
[362628716,1748381438908,-430.0,0.00021095,2]
[362628718,1748381438923,-575.56,0.00021095,2]
[362628721,1748381438936,-430.0,0.00021095,2]
[362628723,1748381438949,-430.0,0.00021095,2]
[362628726,1748381438963,-430.0,0.00021095,2]
[362628728,1748381438974,-430.0,0.00021095,2]
[362628730,1748381438987,-430.0,0.00021095,2]
[362628733,1748381439001,-430.0,0.00021095,2]
[362628735,1748381439014,-430.0,0.00021095,2]
[362628737,1748381439027,-430.0,0.00021095,2]
[362628739,1748381439040,-430.0,0.00021095,2]
[362628742,1748381439052,-430.0,0.00021095,2]
[362628744,1748381439067,-1273.29,0.00021095,2]
[362628747,1748381439079,-700.0,0.00021164,2]
[362628749,1748381439091,-448.94412748,0.00021176,4]
[362628751,1748381439104,-500.0,0.00021269,2]
[362628754,1748381439119,-621.48800661,0.00021269,2]
[362628756,1748381439133,-448.94412748,0.00021314,5]
[362628759,1748381439145,-500.0,0.0002135,2]
[362628761,1748381439157,-430.0,0.00021369,2]
[362628763,1748381439169,-430.0,0.00021369,2]
[362628765,1748381439180,-430.0,0.00021369,2]
[362628767,1748381439192,-523.72318168,0.00021369,2]
[362628769,1748381439204,-529.3,0.00021369,2]
[362628772,1748381439216,-448.53,0.00021369,2]
[362628774,1748381439230,-2641.22,0.00021369,2]
[362628777,1748381439245,-580.47,0.00021369,2]
[362628779,1748381439257,-430.0,0.00021369,2]
[362628781,1748381439269,-492.37,0.00021369,2]
[362628783,1748381439279,-430.0,0.00021369,2]
[362628784,1748381439290,-440.53,0.00021369,2]
[362628785,1748381439301,-976.43,0.00021369,2]
[362628786,1748381439313,-430.0,0.00021369,2]
[362628787,1748381439326,-575.56,0.00021369,2]
[362628788,1748381439339,-430.0,0.00021369,2]
[362628789,1748381439350,-176.45,0.00021369,2]
[362628790,1748381439361,-430.0,0.00021369,2]
[362628791,1748381439371,-430.0,0.00021369,2]
[362628792,1748381439382,-430.0,0.00021369,2]
[362628793,1748381439394,-430.0,0.00021369,2]
[362628794,1748381439405,-430.0,0.00021369,2]
[362628795,1748381439416,-430.0,0.00021369,2]
[362628796,1748381439427,-430.0,0.00021369,2]
[362628797,1748381439439,-430.0,0.00021369,2]
[362628798,1748381439450,-1273.29,0.00021369,2]
[362628799,1748381439461,-448.94412748,0.00021452,5]
[362628800,1748381439472,-674.91031806,0.00021573,2]
[362628801,1748381439484,-448.94412748,0.0002159,5]
[362628802,1748381439495,-430.0,0.00021643,2]
[362628803,1748381439506,-430.0,0.00021643,2]
[362628804,1748381439518,-430.0,0.00021643,2]
[362628805,1748381439530,-529.3,0.00021643,2]
[362628807,1748381439542,-448.53,0.00021643,2]
[362628809,1748381439552,-2641.22,0.00021643,2]
[362628811,1748381439564,-580.47,0.00021643,2]
[362628815,1748381439576,-430.0,0.00021643,2]
[362628818,1748381439587,-430.0,0.00021643,2]
[362628822,1748381439599,-440.53,0.00021643,2]
[362628825,1748381439610,-976.43,0.00021643,2]
[362628828,1748381439621,-430.0,0.00021643,2]
[362628832,1748381439632,-575.56,0.00021643,2]
[362628836,1748381439645,-430.0,0.00021643,2]
[362628839,1748381439657,-474.13240073,0.00021643,2]
[362628842,1748381439669,-430.0,0.00021643,2]
[362628845,1748381439683,-281.15097643,0.00021643,2]
[362628850,1748381439695,-430.0,0.00021643,2]
[362628853,1748381439706,-430.0,0.00021643,2]
[362628856,1748381439718,-430.0,0.00021643,2]
[362628859,1748381439730,-430.0,0.00021643,2]
[362628864,1748381439741,-430.0,0.00021643,2]
[362628867,1748381439755,-1273.29,0.00021643,2]
[362628870,1748381439769,-448.94412748,0.00021728,5]
[362628873,1748381439781,-500.68958051,0.00021817,2]
[362628877,1748381439792,-448.94412748,0.00021866,6]
[362628880,1748381439804,-6003.68,0.00021906,2]
[362628882,1748381439816,-430.0,0.00021917,2]
[362628886,1748381439830,-430.0,0.00021917,2]
[362628888,1748381439841,-430.0,0.00021917,2]
[362628892,1748381439853,-529.3,0.00021917,2]
[362628895,1748381439864,-448.53,0.00021917,2]
[362628898,1748381439875,-2641.22,0.00021917,2]
[362628900,1748381439887,-580.47,0.00021917,2]
[362628903,1748381439898,-430.0,0.00021917,2]
[362628907,1748381439910,-480.1983312,0.00021917,2]
[362628910,1748381439921,-440.53,0.00021917,2]
[362628912,1748381439933,-976.43,0.00021917,2]
[362628915,1748381439944,-430.0,0.00021917,2]
[362628919,1748381439956,-575.56,0.00021917,2]
[362628922,1748381439969,-430.0,0.00021917,2]
[362628925,1748381439981,-430.0,0.00021917,2]
[362628929,1748381439993,-430.0,0.00021917,2]
[362628932,1748381440005,-430.0,0.00021917,2]
[362628935,1748381440017,-430.0,0.00021917,2]
[362628938,1748381440027,-316.41620634,0.00021917,2]
[362628940,1748381440036,-430.0,0.00021917,2]
[362628943,1748381440046,-1273.29,0.00021917,2]
[362628970,1748381440056,-500.0,0.00021973,2]
[362628977,1748381440226,-1509.41,0.00022,7]
[362628980,1748381440240,-9677.29,0.00022,2]
[362628982,1748381440250,-3893.57,0.00022,7]
[362628984,1748381440259,-30906.93350476,0.00022,7]
[362629041,1748381440800,-170.25800078,0.00019176,2]
[362629043,1748381440810,-376.52930003,0.00019176,2]
[362629046,1748381440819,-500.0,0.00019176,2]
[362629048,1748381440829,-500.0,0.00019176,2]
[362629050,1748381440839,-500.0,0.00019176,2]
[362629051,1748381440847,-500.0,0.00019176,2]
[362629053,1748381440857,-430.0,0.00019178,2]
[362629055,1748381440866,-430.0,0.00019178,2]
[362629057,1748381440875,-208.12711879,0.00019178,2]
[362629060,1748381440887,-221.87288121,0.00019178,2]
[362629062,1748381440898,-541.60015181,0.00019448,2]
[362629064,1748381440907,-500.0,0.00019448,2]
[362629066,1748381440916,-500.0,0.00019448,2]
[362629068,1748381440926,-588.76102168,0.00019448,2]
[362629070,1748381440935,-500.0,0.00019448,2]
[362629072,1748381440945,-500.0,0.00019448,2]
[362629074,1748381440954,-500.0,0.00019448,2]
[362629076,1748381440964,-500.0,0.00019448,2]
[362629078,1748381440973,-500.0,0.00019448,2]
[362629080,1748381440982,-500.0,0.00019448,2]
[362629082,1748381440992,-500.0,0.00019448,2]
[362629084,1748381441002,-500.0,0.00019448,2]
[362629086,1748381441011,-430.0,0.00019452,2]
[362629088,1748381441020,-430.0,0.00019452,2]
[362629090,1748381441029,-430.0,0.00019452,2]
[362629092,1748381441038,-382.52,0.00019726,2]
[362629094,1748381441047,-430.0,0.00019726,2]
[362629096,1748381441056,-430.0,0.00020821,2]
[362629098,1748381441066,-21392.37844803,0.00022,7]
[362629100,1748381441077,-1420.20033711,0.00022,7]
[362629109,1748381441154,-430.0,0.00019451,2]
[362629111,1748381441164,-430.0,0.00019725,2]
[362629113,1748381441173,-430.0,0.0002,2]
[362629115,1748381441183,-430.0,0.00020273,2]
[362629117,1748381441192,-365.76,0.00020547,2]
[362629119,1748381441202,-8834.24,0.00022,7]
[362629410,1748381444184,-430.0,0.00019451,2]
[362629412,1748381444194,-430.0,0.00019451,2]
[362629414,1748381444204,-430.0,0.00019725,2]
[362629416,1748381444214,-430.0,0.00019725,2]
[362629418,1748381444223,-160.0,0.00019849,2]
[362629420,1748381444232,-114015.0477101,0.00022,7]
[362629422,1748381444242,-64728.28,0.00022,2]
[362629425,1748381444251,-637.0,0.00022,2]
[362629427,1748381444260,-448.94412748,0.00022003,6]
[362629429,1748381444271,-448.94412748,0.00022141,6]
[362629431,1748381444280,-223.0315306,0.00022177,2]
[362629432,1748381444289,-430.0,0.00022191,2]
[362629434,1748381444299,-430.0,0.00022191,2]
[362629436,1748381444308,-529.3,0.00022191,2]
[362629439,1748381444317,-2641.22,0.00022191,2]
[362629442,1748381444327,-580.47,0.00022191,2]
[362629444,1748381444336,-430.0,0.00022191,2]
[362629448,1748381444345,-440.53,0.00022191,2]
[362629451,1748381444355,-976.43,0.00022191,2]
[362629453,1748381444364,-430.0,0.00022191,2]
[362629455,1748381444373,-575.56,0.00022191,2]
[362629457,1748381444383,-430.0,0.00022191,2]
[362629459,1748381444392,-430.0,0.00022191,2]
[362629461,1748381444401,-438.81878114,0.00022191,2]
[362629463,1748381444411,-430.0,0.00022191,2]
[362629465,1748381444420,-430.0,0.00022191,2]
[362629467,1748381444430,-430.0,0.00022191,2]
[362629469,1748381444439,-1273.29,0.00022191,2]
[362629471,1748381444449,-700.0,0.0002226,2]
[362629473,1748381444460,-448.94412748,0.00022279,6]
[362629475,1748381444469,-674.91031806,0.00022405,2]
[362629477,1748381444479,-448.94412748,0.00022417,7]
[362629479,1748381444488,-430.0,0.00022465,2]
[362629481,1748381444498,-430.0,0.00022465,2]
[362629483,1748381444507,-529.3,0.00022465,2]
[362629485,1748381444520,-2641.22,0.00022465,2]
[362629487,1748381444529,-580.47,0.00022465,2]
[362629489,1748381444539,-430.0,0.00022465,2]
[362629491,1748381444548,-440.53,0.00022465,2]
[362629493,1748381444559,-976.43,0.00022465,2]
[362629495,1748381444568,-430.0,0.00022465,2]
[362629497,1748381444578,-575.56,0.00022465,2]
[362629499,1748381444587,-430.0,0.00022465,2]
[362629501,1748381444597,-420.72950825,0.00022465,2]
[362629503,1748381444606,-430.0,0.00022465,2]
[362629505,1748381444615,-430.0,0.00022465,2]
[362629507,1748381444625,-430.0,0.00022465,2]
[362629509,1748381444635,-1273.29,0.00022465,2]
[362629511,1748381444645,-500.0,0.00022521,2]
[362629513,1748381444655,-448.94412748,0.00022555,7]
[362629515,1748381444664,-208.48715233,0.0002263,2]